{"text_format":"1","workbook":"xlsx","n_sheets":7,"sheets":["Главная страница","kurs","ТМЭБ","пр1","пр2","пр3","шаблон"],"not_rendered":{"charts":0,"images":0,"macros":1,"external_links":0,"defined_names":2,"comments":5,"pivot_tables":0},"unopened":[],"bounds":{"document_bytes":16777216,"sheet_cells":100000,"rows_first":2000,"rows_last":500,"rows_between":2000,"halvings":0,"cell_chars":16384,"cell_head_chars":4096},"cells_cut":0,"cells_raw":0,"read":"whole","date_system":"1900"}

{"sheet":"Главная страница","index":0,"n_rows":11,"n_cols":12,"rows_kept":11,"cut":false,"hidden":false,"merged":[[0,7,1,10],[0,6,1,6]]}
[null,null,null,null,null,null,"ФИО","Остринская Л.И.",null,null,null,"Экзамен"]
[null,null,null,null,null,null,null,null,null,null,null,"Зачет"]
["Дисциплина","Имя листа","Вид контроля","Дата контроля","Группа","Кол-во СТ","Кол-во ч.","Лек","Лаб","Пр","КР"]
["Технологии и модели электронного бизнеса","ТМЭБ","Экзамен",null,"ПИб-11И1",11,40,16,24,"-","a"]
["проба1","пр1","рпо",null,"группа1",20,32,12,20,"-"," "]
["проба2","пр2",null,null,"группа2",15,42,16,26,"-"," "]
["проба3","пр3",null,null,"группа3",11,50,30,20,"-"," "]
["проба4","пр4",null,null,"группа4",20,32,"-",20,16," "]
["проба5","пр5",null,null,"группа5",15,42,18,"-",10," "]
["проба6","пр6",null,null,"группа6",11,50,30,20,"-"," "]
["проба7","пр7",null,null,"группа7",15,40,10,20,10," "]

{"sheet":"kurs","index":1,"n_rows":5,"n_cols":9,"rows_kept":5,"cut":false,"hidden":false,"merged":[]}
["ПРМЕР\"",null,null,null,null,null,null,null,"Тема1"]
["Тема2",null,null,null,null,null,null,null,"ПРМЕР\""]
["Тема3",null,null,null,null,null,null,null,"Тема2"]
["Тема4",null,null,null,null,null,null,null,"Тема4"]
[null,null,null,null,null,null,null,null,"Тема1"]

{"sheet":"ТМЭБ","index":2,"n_rows":68,"n_cols":18,"rows_kept":68,"cut":false,"hidden":false,"merged":[[0,0,0,2],[0,4,0,5],[0,6,0,11],[1,0,1,2],[1,4,1,5],[1,6,1,16],[2,0,3,3],[2,4,2,5],[3,4,3,5],[5,0,6,0],[5,2,6,3],[5,4,6,4],[5,5,5,10],[24,2,24,3],[5,11,5,12],[5,13,6,13],[19,0,20,0],[19,2,20,3],[19,4,20,4],[19,5,19,14],[19,15,19,16],[19,17,20,17],[21,2,21,3],[22,2,22,3],[23,2,23,3],[31,2,31,3],[25,2,25,3],[26,2,26,3],[27,2,27,3],[28,2,28,3],[29,2,29,3],[30,2,30,3]]}
["Группа",null,null,{"$f":"'Главная страница'!E4","v":"ПИб-11И1"},"Преподаватель",null,{"$f":"'Главная страница'!H1","v":"Остринская Л.И."},null,null,null,null,null,"Процент одного +",null,null,null,2]
["Контроль",null,null,{"$f":"'Главная страница'!C4","v":"Экзамен"},"Дисциплина",null,{"$f":"'Главная страница'!A4","v":"Технологии и модели электронного бизнеса"}]
["Учебный план ",null,null,null,"Количество часов",null,null,{"$f":"'Главная страница'!H3","v":"Лек"},null,{"$f":"'Главная страница'!I3","v":"Лаб"},null,{"$f":"'Главная страница'!J3","v":"Пр"},null,{"$f":"'Главная страница'!K3","v":"КР"}]
[null,null,null,null,{"$f":"'Главная страница'!G4","v":40},null,null,{"$f":"'Главная страница'!H4","v":16},null,{"$f":"'Главная страница'!I4","v":24},null,{"$f":"'Главная страница'!J4","v":"-"},null,{"$f":"'Главная страница'!K4","v":"a"}]
[]
["№",null,"ФИО",null,"Зачетка",{"$f":"H3","v":"Лек"},null,null,null,null,null,{"$f":"H4/2","v":8},null,"Итого"]
[null,null,null,null,null,"2014-04-12","2014-04-18","2014-05-21"]
[1,null,"Афанасьев Б.В.",null,"ПИб-11-02",null,null,null,null,null,null,null,null,{"$f":"100-100/$L$6*(COUNTIF(F8:M8,\"н\"))-(COUNTIF(F8:M8,\"\"))*$Q$1","v":84}]
[2,null,"Вахрушева С.С.",null,"ПИб-11-04","+","+","+","+","+","+","+","+",100]
[3,null,"Винокуров И.В.",null,"ПИб-11-05","Н","Н","Н","Н","Н","Н","Н","Н",0]
[4,null,"Ковалев В.А.",null,"ПИб-11-06","Н","Н","Н","Н","+","+","+","+",50]
[5,null,"Козлов А.К.",null,"ПИб-11-07","Н","Н","Н","Н",null,null,null,null,42]
[6,null,"Окунев С.А.",null,"ПИб-11-09",null,null,null,null,null,null,null,null,84]
[7,null,"Омаров Р.А.",null,"ПИб-11-10",null,null,null,null,null,null,null,null,84]
[8,null,"Полуянов А.В.",null,"ПИб-11-11","н","+","+","н","+",null,"+","+",73]
[9,null,"Романенко А.А.",null,"ПИб-11-12",null,null,null,null,null,null,null,null,84]
[10,null,"Севоян А.А.",null,"ПИб-11-15",null,null,null,null,null,null,null,null,84]
[11,null,"Явлова Т.Е.",null,"ПИб-11-17",null,null,null,null,null,null,null,null,84]
[]
["№",null,"ФИО",null,"Зачетка","Лаб",null,null,null,null,null,null,null,null,null,{"$f":"J4/2","v":12},null,"Итого"]
[null,null,null,null,null,"2014-04-12","2014-04-16"]
[1,1,"Афанасьев Б.В.",null,"ПИб-11-02",null,null,null,null,null,null,null,null,null,null,null,null,{"$f":"100-100/$P$20*(COUNTIF(F22:Q22,\"н\"))-(COUNTIF(F22:Q22,\"\"))*$Q$1","v":76}]
[2,1,"Вахрушева С.С.",null,"ПИб-11-04","+","+","+","+","+","+","+","+","+","+","+","+",100]
[3,1,"Винокуров И.В.",null,"ПИб-11-05","н","н","н","н","н","н","н","н","н","н","н","н",0]
[4,2,"Ковалев В.А.",null,"ПИб-11-06","н","н","н","н","н","н","+","+","+","+","+","+",50]
[5,1,"Козлов А.К.",null,"ПИб-11-07","н","н","н","н","н","н",null,null,null,null,null,null,38]
[6,2,"Окунев С.А.",null,"ПИб-11-09",null,null,null,null,null,null,null,null,null,null,null,null,76]
[7,2,"Омаров Р.А.",null,"ПИб-11-10","Н","н","н","+","+","Н","+","+","+",null,null,null,60.666666666666657]
[8,1,"Полуянов А.В.",null,"ПИб-11-11",null,null,null,null,null,null,null,null,null,null,null,null,76]
[9,2,"Романенко А.А.",null,"ПИб-11-12","н","н","н","н","н","н","н","н","н","н","н","н",0]
[10,2,"Севоян А.А.",null,"ПИб-11-15",null,null,null,null,null,null,null,null,null,null,null,null,76]
[11,1,"Явлова Т.Е.",null,"ПИб-11-17",null,null,null,null,null,null,null,null,null,null,null,null,76]
[]
[1,null,null,2]
[{"$f":"INDEX(F35:F45, MATCH(SMALL(COUNTIF(G35:G45, \"<\"&G35:G45), ROW($A:$A)), COUNTIF(G35:G45, \"<\"&G35:G45), 0))","v":"Афанасьев Б.В."},null,null,{"$f":"IFERROR(INDEX(H35:H45, MATCH(SMALL(COUNTIF(I35:I45, \"<\"&I35:I45), ROW($A:$A)), COUNTIF(I35:I45, \"<\"&I35:I45), 0)),\"\")","v":"Ковалев В.А."},null,{"$f":"IFERROR(IF(INDIRECT(\"R\"&MATCH(1,$B$1:$B32,0)&\"C2:R\"&MATCH(1,$B$1:$B32,0)+MAX(IF(ISNUMBER($A$1:$A32),$A$1:$A32,0))&\"C2\",0)=1,INDEX(INDIRECT(\"R\"&MATCH(1,$B$1:$B32,0)&\"C3:R\"&MATCH(1,$B$1:$B32,0)+MAX(IF(ISNUMBER($A$1:$A32),$A$1:$A32,0))&\"C3\",0), INDIRECT(\"R\"&MATCH(1,$B$1:$B32,0)&\"C1:R\"&MATCH(1,$B$1:$B32,0)+MAX(IF(ISNUMBER($A$1:$A32),$A$1:$A32,0))&\"C1\",0)-INDIRECT(\"R\"&MATCH(1,$B$1:$B32,0)-1&\"C1\",0),0),\"\"),INDIRECT(\"R\"&MATCH(1,$A$1:$A32,0)&\"C3:R\"&MATCH(1,$A$1:$A32,0)+MAX(IF(ISNUMBER($A$1:$A32),$A$1:$A32,0))&\"C3\",0))","v":"Афанасьев Б.В."},{"$f":"IFERROR(IF(INDIRECT(\"R\"&MATCH(1,$B$1:$B32,0)&\"C2:R\"&MATCH(1,$B$1:$B32,0)+MAX(IF(ISNUMBER($A$1:$A32),$A$1:$A32,0))&\"C2\",0)=1,INDIRECT(\"R\"&MATCH(1,$B$1:$B32,0)&\"C1:R\"&MATCH(1,$B$1:$B32,0)+MAX(IF(ISNUMBER($A$1:$A32),$A$1:$A32,0))&\"C1\",0)-INDIRECT(\"R\"&MATCH(1,$B$1:$B32,0)-1&\"C1\",0),INDIRECT(\"R\"&MATCH(1,$B$1:$B32,0)&\"C1:R\"&MATCH(1,$B$1:$B32,0)+MAX(IF(ISNUMBER($A$1:$A32),$A$1:$A32,0))&\"C1\",0)-INDIRECT(\"R\"&MATCH(1,$B$1:$B32,0)-1&\"C1\",0)+MAX(IF(ISNUMBER($A$1:$A32),$A$1:$A32,0))+1),ROW(INDIRECT(\"R\"&MATCH(1,$B$1:$B32,0)&\"C1:R\"&MATCH(1,$B$1:$B32,0)+MAX(IF(ISNUMBER($A$1:$A32),$A$1:$A32,0))&\"C1\",0)))","v":1},{"$f":"IF(INDIRECT(\"R\"&MATCH(2,$B$1:$B32,0)&\"C2:R\"&MATCH(2,$B$1:$B32,0)+MAX(IF(ISNUMBER($A$1:$A32),$A$1:$A32,0))&\"C2\",0)=2,INDEX(INDIRECT(\"R\"&MATCH(2,$B$1:$B32,0)&\"C3:R\"&MATCH(2,$B$1:$B32,0)+MAX(IF(ISNUMBER($A$1:$A32),$A$1:$A32,0))&\"C3\",0), INDIRECT(\"R\"&MATCH(2,$B$1:$B32,0)&\"C1:R\"&MATCH(2,$B$1:$B32,0)+MAX(IF(ISNUMBER($A$1:$A32),$A$1:$A32,0))&\"C1\",0)-INDIRECT(\"R\"&MATCH(2,$B$1:$B32,0)-1&\"C1\",0),0),\"\")","v":"Ковалев В.А."},{"$f":"IFERROR(IF(INDIRECT(\"R\"&MATCH(2,$B$1:$B32,0)&\"C2:R\"&MATCH(2,$B$1:$B32,0)+MAX(IF(ISNUMBER($A$1:$A32),$A$1:$A32,0))&\"C2\",0)=2, INDIRECT(\"R\"&MATCH(2,$B$1:$B32,0)&\"C1:R\"&MATCH(2,$B$1:$B32,0)+MAX(IF(ISNUMBER($A$1:$A32),$A$1:$A32,0))&\"C1\",0)-INDIRECT(\"R\"&MATCH(2,$B$1:$B32,0)-1&\"C1\",0),INDIRECT(\"R\"&MATCH(2,$B$1:$B32,0)&\"C1:R\"&MATCH(2,$B$1:$B32,0)+MAX(IF(ISNUMBER($A$1:$A32),$A$1:$A32,0))&\"C1\",0)-INDIRECT(\"R\"&MATCH(2,$B$1:$B32,0)-1&\"C1\",0)+MAX(IF(ISNUMBER($A$1:$A32),$A$1:$A32,0))+1),ROW(INDIRECT(\"R\"&MATCH(1,$B$1:$B32,0)&\"C1:R\"&MATCH(1,$B$1:$B32,0)+MAX(IF(ISNUMBER($A$1:$A32),$A$1:$A32,0))&\"C1\",0)))","v":1}]
["Вахрушева С.С.",null,null,"Окунев С.А.",null,"Вахрушева С.С.",2,"",14]
["Винокуров И.В.",null,null,"Омаров Р.А.",null,"Винокуров И.В.",3,"Окунев С.А.",3]
["Козлов А.К.",null,null,"Романенко А.А.",null,"",16,"Омаров Р.А.",4]
["Полуянов А.В.",null,null,"Севоян А.А.",null,"Козлов А.К.",5,"",17]
["Явлова Т.Е.",null,null,"",null,"",18,"Романенко А.А.",6]
["",null,null,"",null,"",19,"Севоян А.А.",7]
["",null,null,"",null,"Полуянов А.В.",8,"",20]
["",null,null,"",null,"",21,"",9]
["",null,null,"",null,"",22,"",10]
["",null,null,"",null,"Явлова Т.Е.",11,"",32]
[]
[]
[]
[]
[]
[]
[]
[]
[]
[]
[]
[]
[]
[]
[]
[]
[]
[]
[]
[]
[]
[]
[null,null,null,{"$f":"INDEX(F35:F45, MATCH(SMALL(COUNTIF(G35:G45, \"<\"&G35:G45), ROW($A:$A)), COUNTIF(G35:G45, \"<\"&G35:G45), 0))","v":{"$error":"#N/A"}}]

{"sheet":"пр1","index":3,"n_rows":50,"n_cols":17,"rows_kept":50,"cut":false,"hidden":false,"merged":[[0,0,0,2],[0,4,0,5],[0,6,0,11],[1,0,1,2],[1,4,1,5],[1,6,1,16],[28,13,28,14],[28,15,29,15],[2,0,3,3],[2,4,2,5],[3,4,3,5],[5,0,6,0],[5,2,6,3],[5,4,6,4],[52,0,52,1],[5,5,5,8],[28,5,28,12],[5,9,5,10],[5,11,6,11],[28,0,29,0],[28,2,29,3],[28,4,29,4]]}
["Группа",null,null,{"$f":"'Главная страница'!$E$5","v":"группа1"},"Преподаватель",null,{"$f":"'Главная страница'!$H$1","v":"Остринская Л.И."},null,null,null,null,null,"Процент одного +",null,null,null,2]
["Контроль",null,null,{"$f":"'Главная страница'!$C$5","v":"рпо"},"Дисциплина",null,{"$f":"'Главная страница'!$A$5","v":"проба1"}]
["Учебный план ",null,null,null,"Количество часов",null,null,{"$f":"'Главная страница'!H3","v":"Лек"},null,{"$f":"'Главная страница'!I3","v":"Лаб"},null,{"$f":"'Главная страница'!J3","v":"Пр"},null,{"$f":"'Главная страница'!K3","v":"КР"}]
[null,null,null,null,{"$f":"'Главная страница'!$G$5","v":32},null,null,{"$f":"'Главная страница'!$H$5","v":12},null,{"$f":"'Главная страница'!$I$5","v":20},null,{"$f":"'Главная страница'!$J$5","v":"-"},null,{"$f":"'Главная страница'!$K$5","v":" "}]
[]
["№",null,"ФИО",null,"Зачетка",{"$f":"H3","v":"Лек"},null,null,null,{"$f":"H4/2","v":6},null,"Итого"]
[null,null,null,null,null,"1900-05-02"]
[{"$f":"A7+1","v":1},null,null,null,null,null,null,null,null,null,null,{"$f":"100-100/$J$6*(COUNTIF(F8:K8,\"н\"))-(COUNTIF(F8:K8,\"\"))*$Q$1","v":88}]
[{"$f":"A8+1","v":2},null,null,null,null,null,null,null,null,null,null,{"$f":"100-100/$J$6*(COUNTIF(F9:K9,\"н\"))-(COUNTIF(F9:K9,\"\"))*$Q$1","v":88}]
[3,null,null,null,null,null,null,null,null,null,null,88]
[4,null,null,null,null,null,null,null,null,null,null,88]
[5,null,null,null,null,null,null,null,null,null,null,88]
[6,null,null,null,null,null,null,null,null,null,null,88]
[7,null,null,null,null,null,null,null,null,null,null,88]
[8,null,null,null,null,null,null,null,null,null,null,88]
[9,null,null,null,null,null,null,null,null,null,null,88]
[10,null,null,null,null,null,null,null,null,null,null,88]
[11,null,null,null,null,null,null,null,null,null,null,88]
[12,null,null,null,null,null,null,null,null,null,null,88]
[13,null,null,null,null,null,null,null,null,null,null,88]
[14,null,null,null,null,null,null,null,null,null,null,88]
[15,null,null,null,null,null,null,null,null,null,null,88]
[16,null,null,null,null,null,null,null,null,null,null,88]
[17,null,null,null,null,null,null,null,null,null,null,88]
[18,null,null,null,null,null,null,null,null,null,null,88]
[19,null,null,null,null,null,null,null,null,null,null,88]
[20,null,null,null,null,null,null,null,null,null,null,88]
[]
["№",null,"ФИО",null,"Зачетка","Лаб",null,null,null,null,null,null,null,{"$f":"J4/2","v":10},null,"Итого"]
[null,null,null,null,null,"1900-05-02"]
[{"$f":"A30+1","v":1},null,null,null,null,null,null,null,null,null,null,null,null,null,null,{"$f":"100-100/$N$29*(COUNTIF(F31:O31,\"н\"))-(COUNTIF(F31:O31,\"\"))*$Q$1","v":80}]
[{"$f":"A31+1","v":2},null,null,null,null,null,null,null,null,null,null,null,null,null,null,{"$f":"100-100/$N$29*(COUNTIF(F32:O32,\"н\"))-(COUNTIF(F32:O32,\"\"))*$Q$1","v":80}]
[3,null,null,null,null,null,null,null,null,null,null,null,null,null,null,80]
[4,null,null,null,null,null,null,null,null,null,null,null,null,null,null,80]
[5,null,null,null,null,null,null,null,null,null,null,null,null,null,null,80]
[6,null,null,null,null,null,null,null,null,null,null,null,null,null,null,80]
[7,null,null,null,null,null,null,null,null,null,null,null,null,null,null,80]
[8,null,null,null,null,null,null,null,null,null,null,null,null,null,null,80]
[9,null,null,null,null,null,null,null,null,null,null,null,null,null,null,80]
[10,null,null,null,null,null,null,null,null,null,null,null,null,null,null,80]
[11,null,null,null,null,null,null,null,null,null,null,null,null,null,null,80]
[12,null,null,null,null,null,null,null,null,null,null,null,null,null,null,80]
[13,null,null,null,null,null,null,null,null,null,null,null,null,null,null,80]
[14,null,null,null,null,null,null,null,null,null,null,null,null,null,null,80]
[15,null,null,null,null,null,null,null,null,null,null,null,null,null,null,80]
[16,null,null,null,null,null,null,null,null,null,null,null,null,null,null,80]
[17,null,null,null,null,null,null,null,null,null,null,null,null,null,null,80]
[18,null,null,null,null,null,null,null,null,null,null,null,null,null,null,80]
[19,null,null,null,null,null,null,null,null,null,null,null,null,null,null,80]
[20,null,null,null,null,null,null,null,null,null,null,null,null,null,null,80]

{"sheet":"пр2","index":4,"n_rows":40,"n_cols":19,"rows_kept":40,"cut":false,"hidden":false,"merged":[[0,0,0,2],[0,4,0,5],[0,6,0,11],[1,0,1,2],[1,4,1,5],[1,6,1,16],[23,16,23,17],[23,18,24,18],[2,0,3,3],[2,4,2,5],[3,4,3,5],[5,0,6,0],[5,2,6,3],[5,4,6,4],[42,0,42,1],[5,5,5,10],[23,5,23,15],[5,11,5,12],[5,13,6,13],[23,0,24,0],[23,2,24,3],[23,4,24,4]]}
["Группа",null,null,{"$f":"'Главная страница'!$E$6","v":"группа2"},"Преподаватель",null,{"$f":"'Главная страница'!$H$1","v":"Остринская Л.И."},null,null,null,null,null,"Процент одного +",null,null,null,2]
["Контроль",null,null,{"$f":"'Главная страница'!$C$6","v":0},"Дисциплина",null,{"$f":"'Главная страница'!$A$6","v":"проба2"}]
["Учебный план ",null,null,null,"Количество часов",null,null,{"$f":"'Главная страница'!H3","v":"Лек"},null,{"$f":"'Главная страница'!I3","v":"Лаб"},null,{"$f":"'Главная страница'!J3","v":"Пр"},null,{"$f":"'Главная страница'!K3","v":"КР"}]
[null,null,null,null,{"$f":"'Главная страница'!$G$6","v":42},null,null,{"$f":"'Главная страница'!$H$6","v":16},null,{"$f":"'Главная страница'!$I$6","v":26},null,{"$f":"'Главная страница'!$J$6","v":"-"},null,{"$f":"'Главная страница'!$K$6","v":" "}]
[]
["№",null,"ФИО",null,"Зачетка",{"$f":"H3","v":"Лек"},null,null,null,null,null,{"$f":"H4/2","v":8},null,"Итого"]
[null,null,null,null,null,"1900-05-02"]
[{"$f":"A7+1","v":1},null,null,null,null,null,null,null,null,null,null,null,null,{"$f":"100-100/$L$6*(COUNTIF(F8:M8,\"н\"))-(COUNTIF(F8:M8,\"\"))*$Q$1","v":84}]
[{"$f":"A8+1","v":2},null,null,null,null,null,null,null,null,null,null,null,null,{"$f":"100-100/$L$6*(COUNTIF(F9:M9,\"н\"))-(COUNTIF(F9:M9,\"\"))*$Q$1","v":84}]
[3,null,null,null,null,null,null,null,null,null,null,null,null,84]
[4,null,null,null,null,null,null,null,null,null,null,null,null,84]
[5,null,null,null,null,null,null,null,null,null,null,null,null,84]
[6,null,null,null,null,null,null,null,null,null,null,null,null,84]
[7,null,null,null,null,null,null,null,null,null,null,null,null,84]
[8,null,null,null,null,null,null,null,null,null,null,null,null,84]
[9,null,null,null,null,null,null,null,null,null,null,null,null,84]
[10,null,null,null,null,null,null,null,null,null,null,null,null,84]
[11,null,null,null,null,null,null,null,null,null,null,null,null,84]
[12,null,null,null,null,null,null,null,null,null,null,null,null,84]
[13,null,null,null,null,null,null,null,null,null,null,null,null,84]
[14,null,null,null,null,null,null,null,null,null,null,null,null,84]
[15,null,null,null,null,null,null,null,null,null,null,null,null,84]
[]
["№",null,"ФИО",null,"Зачетка","Лаб",null,null,null,null,null,null,null,null,null,null,{"$f":"J4/2","v":13},null,"Итого"]
[null,null,null,null,null,"1900-05-02"]
[{"$f":"A25+1","v":1},null,null,null,null,null,null,null,null,null,null,null,null,null,null,null,null,null,{"$f":"100-100/$Q$24*(COUNTIF(F26:R26,\"н\"))-(COUNTIF(F26:R26,\"\"))*$Q$1","v":74}]
[{"$f":"A26+1","v":2},null,null,null,null,null,null,null,null,null,null,null,null,null,null,null,null,null,{"$f":"100-100/$Q$24*(COUNTIF(F27:R27,\"н\"))-(COUNTIF(F27:R27,\"\"))*$Q$1","v":74}]
[3,null,null,null,null,null,null,null,null,null,null,null,null,null,null,null,null,null,74]
[4,null,null,null,null,null,null,null,null,null,null,null,null,null,null,null,null,null,74]
[5,null,null,null,null,null,null,null,null,null,null,null,null,null,null,null,null,null,74]
[6,null,null,null,null,null,null,null,null,null,null,null,null,null,null,null,null,null,74]
[7,null,null,null,null,null,null,null,null,null,null,null,null,null,null,null,null,null,74]
[8,null,null,null,null,null,null,null,null,null,null,null,null,null,null,null,null,null,74]
[9,null,null,null,null,null,null,null,null,null,null,null,null,null,null,null,null,null,74]
[10,null,null,null,null,null,null,null,null,null,null,null,null,null,null,null,null,null,74]
[11,null,null,null,null,null,null,null,null,null,null,null,null,null,null,null,null,null,74]
[12,null,null,null,null,null,null,null,null,null,null,null,null,null,null,null,null,null,74]
[13,null,null,null,null,null,null,null,null,null,null,null,null,null,null,null,null,null,74]
[14,null,null,null,null,null,null,null,null,null,null,null,null,null,null,null,null,null,74]
[15,null,null,null,null,null,null,null,null,null,null,null,null,null,null,null,null,null,74]

{"sheet":"пр3","index":5,"n_rows":32,"n_cols":21,"rows_kept":32,"cut":false,"hidden":false,"merged":[[0,0,0,2],[0,4,0,5],[0,6,0,11],[1,0,1,2],[1,4,1,5],[1,6,1,16],[2,0,3,3],[2,4,2,5],[3,4,3,5],[5,0,6,0],[5,2,6,3],[5,4,6,4],[34,0,34,1],[5,5,5,17],[19,5,19,12],[5,18,5,19],[5,20,6,20],[19,0,20,0],[19,2,20,3],[19,4,20,4],[19,13,19,14],[19,15,20,15]]}
["Группа",null,null,{"$f":"'Главная страница'!$E$7","v":"группа3"},"Преподаватель",null,{"$f":"'Главная страница'!$H$1","v":"Остринская Л.И."},null,null,null,null,null,"Процент одного +",null,null,null,2]
["Контроль",null,null,{"$f":"'Главная страница'!$C$7","v":0},"Дисциплина",null,{"$f":"'Главная страница'!$A$7","v":"проба3"}]
["Учебный план ",null,null,null,"Количество часов",null,null,{"$f":"'Главная страница'!H3","v":"Лек"},null,{"$f":"'Главная страница'!I3","v":"Лаб"},null,{"$f":"'Главная страница'!J3","v":"Пр"},null,{"$f":"'Главная страница'!K3","v":"КР"}]
[null,null,null,null,{"$f":"'Главная страница'!$G$7","v":50},null,null,{"$f":"'Главная страница'!$H$7","v":30},null,{"$f":"'Главная страница'!$I$7","v":20},null,{"$f":"'Главная страница'!$J$7","v":"-"},null,{"$f":"'Главная страница'!$K$7","v":" "}]
[]
["№",null,"ФИО",null,"Зачетка",{"$f":"H3","v":"Лек"},null,null,null,null,null,null,null,null,null,null,null,null,{"$f":"H4/2","v":15},null,"Итого"]
[null,null,null,null,null,"1900-05-02"]
[{"$f":"A7+1","v":1},null,null,null,null,null,null,null,null,null,null,null,null,null,null,null,null,null,null,null,{"$f":"100-100/$S$6*(COUNTIF(F8:T8,\"н\"))-(COUNTIF(F8:T8,\"\"))*$Q$1","v":70}]
[{"$f":"A8+1","v":2},null,null,null,null,null,null,null,null,null,null,null,null,null,null,null,null,null,null,null,{"$f":"100-100/$S$6*(COUNTIF(F9:T9,\"н\"))-(COUNTIF(F9:T9,\"\"))*$Q$1","v":70}]
[3,null,null,null,null,null,null,null,null,null,null,null,null,null,null,null,null,null,null,null,70]
[4,null,null,null,null,null,null,null,null,null,null,null,null,null,null,null,null,null,null,null,70]
[5,null,null,null,null,null,null,null,null,null,null,null,null,null,null,null,null,null,null,null,70]
[6,null,null,null,null,null,null,null,null,null,null,null,null,null,null,null,null,null,null,null,70]
[7,null,null,null,null,null,null,null,null,null,null,null,null,null,null,null,null,null,null,null,70]
[8,null,null,null,null,null,null,null,null,null,null,null,null,null,null,null,null,null,null,null,70]
[9,null,null,null,null,null,null,null,null,null,null,null,null,null,null,null,null,null,null,null,70]
[10,null,null,null,null,null,null,null,null,null,null,null,null,null,null,null,null,null,null,null,70]
[11,null,null,null,null,null,null,null,null,null,null,null,null,null,null,null,null,null,null,null,70]
[]
["№",null,"ФИО",null,"Зачетка","Лаб",null,null,null,null,null,null,null,{"$f":"J4/2","v":10},null,"Итого"]
[null,null,null,null,null,"1900-05-02"]
[{"$f":"A21+1","v":1},null,null,null,null,null,null,null,null,null,null,null,null,null,null,{"$f":"100-100/$N$20*(COUNTIF(F22:O22,\"н\"))-(COUNTIF(F22:O22,\"\"))*$Q$1","v":80}]
[{"$f":"A22+1","v":2},null,null,null,null,null,null,null,null,null,null,null,null,null,null,{"$f":"100-100/$N$20*(COUNTIF(F23:O23,\"н\"))-(COUNTIF(F23:O23,\"\"))*$Q$1","v":80}]
[3,null,null,null,null,null,null,null,null,null,null,null,null,null,null,80]
[4,null,null,null,null,null,null,null,null,null,null,null,null,null,null,80]
[5,null,null,null,null,null,null,null,null,null,null,null,null,null,null,80]
[6,null,null,null,null,null,null,null,null,null,null,null,null,null,null,80]
[7,null,null,null,null,null,null,null,null,null,null,null,null,null,null,80]
[8,null,null,null,null,null,null,null,null,null,null,null,null,null,null,80]
[9,null,null,null,null,null,null,null,null,null,null,null,null,null,null,80]
[10,null,null,null,null,null,null,null,null,null,null,null,null,null,null,80]
[11,null,null,null,null,null,null,null,null,null,null,null,null,null,null,80]

{"sheet":"шаблон","index":6,"n_rows":8,"n_cols":17,"rows_kept":8,"cut":false,"hidden":true,"merged":[[0,0,0,2],[0,4,0,5],[0,6,0,11],[1,0,1,2],[1,4,1,5],[1,6,1,16],[7,2,7,3],[5,6,5,7],[5,8,6,8],[2,0,3,3],[2,4,2,5],[3,4,3,5],[5,0,6,0],[5,2,6,3],[5,4,6,4]]}
["Группа",null,null,null,"Преподаватель",null,null,null,null,null,null,null,"Процент одного +",null,null,null,2]
["Контроль",null,null,null,"Дисциплина",null,{"$f":"'Главная страница'!A4","v":"Технологии и модели электронного бизнеса"}]
["Учебный план ",null,null,null,"Количество часов",null,null,{"$f":"'Главная страница'!H3","v":"Лек"},null,{"$f":"'Главная страница'!I3","v":"Лаб"},null,{"$f":"'Главная страница'!J3","v":"Пр"},null,{"$f":"'Главная страница'!K3","v":"КР"}]
[]
[]
["№",null,"ФИО",null,"Зачетка",null,{"$f":"HLOOKUP($F6,$H$3:$N$4,2,0)/2","v":{"$error":"#N/A"}},null,"Итого"]
[null,null,null,null,null,"1900-05-02"]
[1,null,null,null,null,null,null,null,{"$f":"100-100/OFFSET(I8,-(1+$A8),-2)*(COUNTIF(F8:H8,\"н\"))-(COUNTIF(F8:H8,\"\"))*$Q$1","v":{"$error":"#N/A"}}]